bitfinex-derivatives/quotes_SOLF0:USTF0_20240827
["timestamp","ask_amount","ask_price","bid_price","bid_amount"]
[1724771313206,0.04223628,153.68,153.65,27.53866341]
[1724771313409,3.2533,153.7,153.65,27.53866341]
[1724771313611,5.58,153.74,153.67,27.49]
[1724771313904,5.58,153.76,153.68,3.2535]
[1724771314312,5.58,153.76,153.69,1.2551]
[1724771314509,3.2527,153.73,153.7,0.046276]
[1724771315106,3.29365041,153.74,153.7,0.046276]
[1724771315302,0.04125041,153.74,153.7,0.046276]
[1724771315811,0.04125041,153.74,153.71,27.49]
[1724771316010,0.04125041,153.74,153.72,1.2652]
[1724771316206,3.2514,153.79,153.73,27.49]
[1724771316813,3.2516,153.78,153.73,27.49]
[1724771317512,0.04488542,153.77,153.74,0.04453672]
[1724771318307,0.04488542,153.77,153.74,37.65683672]
[1724771318613,0.04488542,153.77,153.75,3.17270775]
[1724771318811,0.04488542,153.77,153.75,6.42480775]
[1724771319111,0.04488542,153.77,153.76,1.3362]
[1724771319904,5.32,153.83,153.76,1.3362]
[1724771319905,3.2511,153.8,153.76,1.3362]
[1724771320113,5.32,153.85,153.76,1.3362]
[1724771320302,0.74699755,153.84,153.76,1.3362]
[1724771320611,3.2514,153.79,153.76,1.3362]
[1724771320908,34.36,153.82,153.76,1.3362]
[1724771321102,3.2517,153.77,153.76,0.0447995]
[1724771328311,0.04754004,153.79,153.76,0.0447995]
[1724771329614,3.29894004,153.79,153.76,0.0447995]
[1724771330113,0.04754004,153.79,153.76,0.0447995]
[1724771331811,0.04754004,153.79,153.76,1.3439995]
[1724771332016,0.04754004,153.79,153.76,2.5840995]
[1724771334912,3.29884004,153.79,153.76,2.5840995]
[1724771335919,5.3,153.85,153.76,5.8358995]
[1724771336313,5.3,153.85,153.77,34.36]
[1724771336512,5.3,153.85,153.77,37.6117]
[1724771336513,3.251,153.81,153.77,37.6117]
[1724771336913,3.251,153.81,153.77,37.65738632]
[1724771339720,5.3,153.85,153.77,0.04568632]
[1724771340127,3.2512,153.8,153.77,0.04568632]
[1724771340321,32.78,153.85,153.77,0.04568632]
[1724771340623,5.3,153.85,153.78,27.48]
[1724771341020,3.2506,153.83,153.8,27.48]
[1724771341225,3.2506,153.83,153.8,27.52430316]
[1724771342027,3.2507,153.82,153.8,0.04430316]
[1724771344528,3.2496,153.87,153.81,27.48]
[1724771344745,5.26,153.91,153.83,27.48]
[1724771344925,5.26,153.91,153.85,0.04384555]
[1724771345532,3.21458392,153.92,153.85,0.04384555]
[1724771345719,3.2494,153.89,153.85,0.04384555]
[1724771346330,3.2494,153.88,153.85,0.04384555]
[1724771346535,3.21458392,153.92,153.85,0.04384555]
[1724771346830,0.74480563,153.91,153.85,0.04384555]
[1724771347230,28.22480563,153.91,153.85,0.04384555]
[1724771347424,27.48,153.91,153.85,0.04384555]
[1724771347821,3.2494,153.88,153.85,0.04384555]
[1724771349023,3.2493,153.89,153.85,0.04384555]
[1724771350528,3.2494,153.88,153.85,0.04384555]
[1724771352732,32.74,153.93,153.85,0.04384555]
[1724771352930,0.74469687,153.92,153.85,0.04384555]
[1724771353131,3.2494,153.88,153.85,0.04384555]
[1724771354826,3.17587022,153.92,153.85,0.04384555]
[1724771355432,3.2495,153.88,153.85,0.04384555]
[1724771355929,3.2493,153.89,153.85,0.04384555]
[1724771356234,32.74,153.95,153.85,27.52384555]
[1724771356432,3.2491,153.9,153.88,0.04266448]
[1724771361140,3.2488,153.91,153.88,0.04266448]
[1724771361637,7.8107,153.96,153.88,0.04266448]
[1724771361943,0.74431057,153.95,153.88,0.04266448]
[1724771362144,3.2484,153.93,153.88,0.04266448]
[1724771362442,3.22563618,153.95,153.88,0.04266448]
[1724771362833,27.48,153.93,153.88,0.04266448]
[1724771363039,27.48,153.91,153.88,0.04266448]
[1724771363435,3.2492,153.89,153.88,0.04266448]
[1724771363636,27.48,153.9,153.83,3.21899668]
[1724771363832,27.48,153.9,153.8,1.2997]
[1724771364036,3.2493,153.89,153.83,3.2503]
[1724771364240,3.2493,153.89,153.83,6.44472979]
[1724771364640,0.04594579,153.88,153.84,3.29500277]
[1724771364838,0.04594579,153.88,153.85,27.48]
[1724771365337,0.04594579,153.88,153.85,30.7128829]
[1724771365544,0.04594579,153.88,153.85,33.9628829]
[1724771367341,0.04594579,153.88,153.86,3.2498]
[1724771368637,0.04594579,153.88,153.85,31.9472829]
[1724771369440,0.04594579,153.88,153.85,3.2328829]
[1724771369849,3.2498,153.86,153.85,3.2328829]
[1724771370246,0.04594579,153.88,153.85,3.2328829]
[1724771370436,3.2497,153.87,153.85,3.2328829]
[1724771372250,3.29544579,153.88,153.85,3.2328829]
[1724771372552,0.04594579,153.88,153.87,27.45]
[1724771374444,0.04594579,153.88,153.87,30.6996]
[1724771374641,3.2486,153.92,153.87,30.6996]
[1724771375654,3.2488,153.91,153.88,0.04558736]
[1724771377646,11.09094738,153.96,153.88,3.29488736]
[1724771378353,3.2487,153.92,153.88,3.29488736]
[1724771379351,3.2488,153.91,153.88,0.04558736]
[1724771380145,3.2488,153.91,153.89,27.45]
[1724771380345,5.24,153.98,153.89,27.45]
[1724771380551,3.29997247,153.97,153.92,27.49497058]
[1724771380755,5.24,153.98,153.92,27.49497058]
[1724771380955,2.5607,154.01,153.92,27.49497058]
[1724771381155,0.74382881,154.0,153.92,27.49497058]
[1724771381354,3.2478,153.96,153.92,27.49497058]
[1724771381851,30.68605735,154.0,153.92,27.49497058]
[1724771382154,0.74385694,153.99,153.92,27.49497058]
[1724771382355,3.17495674,153.98,153.92,27.49497058]
[1724771382854,27.45,154.0,153.92,27.49497058]
[1724771383051,0.7438224,153.99,153.92,0.04497058]
[1724771383256,28.1938224,153.99,153.92,0.04497058]
[1724771383458,0.7438224,153.98,153.92,0.04497058]
[1724771383763,3.2482,153.94,153.92,0.04497058]
[1724771384360,3.2478,153.96,153.92,0.04497058]
[1724771384656,27.45,153.99,153.92,0.04497058]
[1724771384851,3.2483,153.94,153.92,0.04497058]
[1724771385557,3.2483,153.93,153.92,0.04497058]
[1724771392155,3.19445694,154.0,153.92,27.49497058]
[1724771392351,0.74346837,153.99,153.92,27.49497058]
[1724771392555,0.74346837,153.98,153.92,27.49497058]
[1724771392850,3.23812309,153.99,153.92,27.49497058]
[1724771393055,3.2475,153.97,153.92,27.49497058]
[1724771393255,3.23812309,153.99,153.92,27.49497058]
[1724771393848,3.2479,153.96,153.92,27.49497058]
[1724771394953,33.9428,154.03,153.92,27.49497058]
[1724771394954,361.98,154.15,153.95,27.45]
[1724771395260,1.211,154.07,154.03,0.04633384]
[1724771395448,1.96742051,154.06,154.03,0.04125446]
[1724771395651,0.74382051,154.05,154.03,0.04125446]
[1724771396249,3.246,154.04,154.03,0.04125446]
[1724771396457,3.98982051,154.04,154.03,0.04125446]
[1724771398854,3.246,154.04,154.03,0.04125446]
[1724771399858,35.68178933,154.15,154.03,27.47125446]
[1724771400059,27.43,154.13,154.07,0.04477565]
[1724771400259,0.74484202,154.12,154.07,0.04477565]
[1724771401062,27.43,154.08,153.98,27.43]
[1724771401361,0.74485143,154.07,153.98,27.43]
[1724771401561,3.2465,154.02,153.98,27.43]
[1724771401960,3.29429656,154.02,153.98,27.47137091]
[1724771403366,0.04779656,154.02,153.98,0.04137091]
[1724771403554,0.79280854,154.02,153.98,0.04137091]
[1724771404364,1.0,154.11,154.0,27.43]
[1724771404561,1.98567656,154.1,154.02,27.43]
[1724771404765,3.2457,154.06,154.02,27.43]
[1724771404958,4.18815978,154.11,154.04,27.43]
[1724771405268,3.2457,154.06,154.03,27.43]
[1724771405455,3.2457,154.06,154.03,27.4787546]
[1724771406677,9.42815978,154.11,154.03,27.4787546]
[1724771406874,0.68801886,154.1,154.03,27.4787546]
[1724771407178,3.2454,154.08,154.03,27.4787546]
[1724771407384,9.42815978,154.11,154.03,27.4787546]
[1724771407580,0.68805115,154.1,154.03,27.4787546]
[1724771408080,3.2452,154.08,154.03,27.4787546]
[1724771410782,3.2454,154.07,154.03,27.4787546]
[1724771418384,3.2454,154.07,154.05,27.43]
[1724771418777,1.0,154.11,154.06,27.43]
[1724771418977,29.9377,154.19,154.1,27.43]
[1724771419178,5.92744382,154.18,154.13,0.04929759]
[1724771419388,0.68744382,154.17,154.13,0.04929759]
[1724771420282,3.2441,154.14,154.13,0.04929759]
[1724771421292,336.0,154.21,154.13,0.04929759]
[1724771421477,8.40986128,154.21,154.13,0.04929759]
[1724771421677,8.40986128,154.21,154.14,27.43]
[1724771421882,0.68738915,154.2,154.14,27.43]
[1724771422289,3.2431,154.18,154.14,27.43]
[1724771423192,5.24,154.22,154.16,27.43]
[1724771423393,0.68708161,154.21,154.17,0.04622993]
[1724771423596,3.21326262,154.22,154.17,0.04622993]
[1724771423892,3.2424,154.21,154.17,0.04622993]
[1724771424692,3.2427,154.2,154.17,0.04622993]
[1724771426591,30.64326262,154.22,154.17,0.04622993]
[1724771426787,27.43,154.2,154.17,0.04622993]
[1724771427189,3.2431,154.18,154.17,0.04622993]
[1724771427384,27.43,154.22,154.17,0.04622993]
[1724771427586,0.68703717,154.21,154.17,0.04622993]
[1724771427786,3.2427,154.2,154.17,0.04622993]
[1724771429289,3.2429,154.19,154.17,0.04622993]
[1724771429588,27.43,154.2,154.17,0.04622993]
[1724771429788,3.2431,154.18,154.17,0.04622993]
[1724771431885,3.2428,154.2,154.17,0.04622993]
[1724771432189,37.23639391,154.23,154.17,0.04622993]
[1724771432492,3.2426,154.21,154.17,0.04622993]
[1724771433396,27.43,154.19,154.17,0.04622993]
[1724771433799,3.2431,154.18,154.17,0.04622993]
[1724771434091,27.43,154.18,154.1,2.5747]
[1724771434393,27.43,154.15,154.06,27.43]
[1724771434697,3.2443,154.13,154.06,30.6755]
[1724771434896,3.2443,154.13,154.07,1.321]
[1724771435299,3.2443,154.13,154.08,0.04876175]
[1724771435300,0.04164251,154.12,154.08,0.04876175]
[1724771435488,0.04164251,154.12,154.02,1.321]
[1724771435489,27.43,154.09,154.02,1.321]
[1724771435799,3.2464,154.03,153.96,29.9641]
[1724771435990,27.43,154.03,153.96,2.5341]
[1724771436301,3.2465,154.02,153.96,2.5341]
[1724771436686,0.04109394,154.01,153.97,0.04519868]
[1724771436890,5.28,154.07,153.97,27.47519868]
[1724771437092,3.18373069,154.09,154.02,27.43]
[1724771437298,5.28,154.1,154.0,27.43]
[1724771437600,5.28,154.1,153.97,30.6774]
[1724771437601,27.43,154.07,153.97,30.6774]
[1724771437794,3.22270322,154.06,153.97,30.6774]
[1724771437992,3.2939755,154.03,154.0,0.04210327]
[1724771438393,0.0475755,154.03,154.0,0.04210327]
[1724771438589,3.2464,154.02,154.0,0.04210327]
[1724771439600,0.0475755,154.03,154.0,0.04210327]
[1724771440100,0.0475755,154.03,154.0,27.47210327]
[1724771440289,0.0475755,154.03,154.01,1.3369]
[1724771440688,0.0475755,154.03,154.02,27.43]
[1724771440897,3.2453,154.08,154.02,27.43]
[1724771441096,5.28,154.11,154.04,27.43]
[1724771441391,3.2453,154.08,154.04,27.43]
[1724771441592,35.98400542,154.11,154.01,28.7669]
[1724771441787,0.68630627,154.1,154.01,28.7669]
[1724771441989,8.55400542,154.11,154.04,0.04514628]
[1724771442197,34.97641064,154.1,154.04,0.04514628]
[1724771442699,0.68641064,154.09,154.04,0.04514628]
[1724771444001,3.2455,154.07,154.04,0.04514628]
[1724771444696,3.2456,154.06,154.04,0.04514628]
[1724771445703,3.2455,154.07,154.04,0.04514628]
[1724771446405,6.28,154.1,154.04,0.04514628]
[1724771446406,1.0,154.1,154.04,0.04514628]
[1724771446608,1.0,154.1,154.04,34.33514628]
[1724771447005,3.245,154.09,154.04,34.33514628]
[1724771447206,1.0,154.1,154.04,34.33514628]
[1724771447399,1.0,154.1,154.04,0.04514628]
[1724771447599,3.2454,154.08,154.04,0.04514628]
[1724771447803,1.0,154.1,154.04,0.04514628]
[1724771448100,35.29,154.1,154.04,0.04514628]
[1724771448408,1.0,154.1,154.04,0.04514628]
[1724771448605,35.29,154.1,154.04,0.04514628]
[1724771448798,3.2458,154.05,154.04,0.04514628]
[1724771450501,5.28,154.07,154.04,0.04514628]
[1724771450704,8.5255,154.07,154.04,0.04514628]
[1724771452105,3.2456,154.06,154.04,0.04514628]
[1724771452712,5.28,154.07,154.04,0.04514628]
[1724771452904,6.28,154.1,154.04,0.04514628]
[1724771453608,34.29,154.07,154.04,0.04514628]
[1724771453806,3.2458,154.05,154.04,0.04514628]
[1724771455015,3.2456,154.06,154.04,0.04514628]
[1724771457710,1.0,154.1,154.04,0.04514628]
[1724771458403,4.17475568,154.1,154.04,0.04514628]
[1724771459003,3.245,154.09,154.04,0.04514628]
[1724771461716,3.245,154.09,154.04,3.29114628]
[1724771462015,1.0,154.1,154.04,0.04514628]
[1724771462227,27.42,154.08,154.04,0.04514628]
[1724771462518,3.2458,154.05,154.04,0.04514628]
[1724771463714,3.2458,154.06,154.04,0.04514628]
[1724771464016,32.66,154.16,154.04,27.46514628]
[1724771464319,0.6860266,154.15,154.08,0.04647991]
[1724771464813,3.2448,154.1,154.08,0.04647991]
[1724771465412,32.66,154.16,154.08,0.04647991]
[1724771465613,5.24,154.16,154.08,0.04647991]
[1724771465818,0.6859657,154.15,154.08,0.04647991]
[1724771467117,3.245,154.09,154.08,0.04647991]
[1724771467507,27.42,154.13,154.08,0.04647991]
[1724771467713,3.2448,154.1,154.08,0.04647991]
[1724771468117,3.2445,154.12,154.08,0.04647991]
[1724771468614,5.22,154.13,154.08,0.04647991]
[1724771468816,32.64,154.13,154.08,0.04647991]
[1724771469315,3.2446,154.11,154.08,0.04647991]
[1724771469916,3.2448,154.1,154.08,0.04647991]
[1724771471913,3.2445,154.12,154.08,0.04647991]
[1724771472113,5.22,154.13,154.08,0.04647991]
[1724771472323,32.64,154.13,154.08,0.04647991]
[1724771473820,3.2447,154.11,154.08,0.04647991]
[1724771474017,32.64,154.13,154.08,0.04647991]
[1724771474414,3.2449,154.1,154.08,0.04647991]
[1724771474912,30.72542075,154.11,154.08,0.04647991]
[1724771475122,27.42,154.11,154.08,0.04647991]
[1724771475425,3.2449,154.1,154.08,0.04647991]
[1724771475812,30.60951512,154.11,154.08,0.04647991]
[1724771476023,3.245,154.09,154.08,0.04647991]
[1724771476922,32.64,154.13,154.08,0.04647991]
[1724771477119,27.42,154.13,154.08,0.04647991]
[1724771477624,30.64977366,154.13,154.08,0.04647991]
[1724771477836,3.2447,154.11,154.08,0.04647991]
[1724771478541,3.2448,154.1,154.08,0.04647991]
[1724771479846,3.245,154.09,154.08,0.04647991]
[1724771480341,27.42,154.11,154.08,0.04647991]
[1724771480547,3.2449,154.1,154.08,0.04647991]
[1724771485439,27.42,154.13,154.08,0.04647991]
[1724771485747,27.42,154.17,154.09,3.2448]
[1724771486045,5.73455234,154.18,154.11,0.04375234]
[1724771486238,5.73455234,154.18,154.11,3.28825234]
[1724771486436,4.46555234,154.18,154.11,0.04375234]
[1724771486746,53.06241994,154.22,154.11,27.46375234]
[1724771486747,27.42,154.21,154.11,27.46375234]
[1724771486947,0.68584666,154.2,154.14,0.04806853]
[1724771487137,3.2428,154.2,154.14,0.04806853]
[1724771487337,27.42,154.21,154.14,0.04806853]
[1724771487641,58.8109863,154.22,154.14,0.04806853]
[1724771488247,27.42,154.21,154.14,0.04806853]
[1724771488651,3.2429,154.19,154.14,0.04806853]
[1724771488850,27.42,154.19,154.14,0.04806853]
[1724771490141,58.8109863,154.22,154.14,0.04806853]
[1724771490342,28.10560857,154.21,154.14,0.04806853]
[1724771490542,27.42,154.21,154.14,0.04806853]
[1724771490745,3.2428,154.2,154.14,3.29196853]
[1724771490941,27.42,154.21,154.14,0.04806853]
[1724771491353,3.2429,154.19,154.14,0.04806853]
[1724771492352,3.2429,154.19,154.14,3.29196853]
[1724771492552,3.2427,154.2,154.14,3.29196853]
[1724771493046,3.2427,154.2,154.15,3.2437]
[1724771495849,3.2429,154.19,154.14,3.29196853]
[1724771496958,27.42,154.21,154.14,0.04806853]
[1724771497750,3.2432,154.18,154.14,0.04806853]
[1724771498058,3.2432,154.18,154.14,3.29186853]
[1724771499960,5.60712287,154.22,154.14,0.04806853]
[1724771500256,33.02712287,154.22,154.14,0.04806853]
[1724771500452,3.2434,154.17,154.14,0.04806853]
[1724771501655,5.60712287,154.22,154.14,0.04806853]
[1724771501656,3.2437,154.15,154.14,0.04806853]
[1724771502959,3.2434,154.17,154.14,0.04806853]
[1724771504554,5.60712287,154.22,154.14,27.46806853]
[1724771504952,5.60712287,154.22,154.14,30.71196853]
[1724771505567,3.2431,154.18,154.14,27.46806853]
[1724771505755,5.60712287,154.22,154.14,27.46806853]
[1724771506158,3.2432,154.18,154.14,27.46806853]
[1724771506966,5.60712287,154.22,154.14,27.46806853]
[1724771507563,3.2432,154.18,154.14,27.46806853]
[1724771508760,3.243,154.19,154.14,30.71196853]
[1724771509061,2.4359,154.22,154.14,27.46806853]
[1724771509660,3.2429,154.19,154.15,3.2436]
[1724771510864,1.2077,154.22,154.16,27.42]
[1724771511168,1.2077,154.22,154.17,0.04184725]
[1724771511363,3.2425,154.21,154.17,0.04184725]
[1724771511958,3.2427,154.2,154.17,0.04184725]
[1724771513365,1.2077,154.22,154.17,0.04184725]
[1724771513366,3.2429,154.19,154.17,0.04184725]
[1724771513559,1.2077,154.22,154.17,0.04184725]
[1724771513560,28.6277,154.22,154.17,0.04184725]
[1724771513867,1.2914,154.21,154.17,0.04184725]
[1724771514170,3.2431,154.18,154.17,0.04184725]
[1724771522366,3.2429,154.19,154.17,0.04184725]
[1724771523177,1.2077,154.22,154.17,0.04184725]
[1724771524275,10.96,154.21,154.17,0.04184725]
[1724771525074,10.96,154.19,154.17,0.04184725]
[1724771525677,10.96,154.18,154.17,0.04184725]
[1724771527278,14.2031,154.18,154.17,0.04184725]
[1724771529785,10.96,154.18,154.17,0.04184725]
[1724771530581,14.2031,154.18,154.17,0.04184725]
[1724771530883,3.2431,154.18,154.17,0.04184725]
[1724771531892,2.4378,154.22,154.17,0.04184725]
[1724771532478,3.2426,154.21,154.17,0.04184725]
[1724771532785,1.2077,154.22,154.17,0.04184725]
[1724771532986,1.2077,154.22,154.17,11.00184725]
[1724771533181,8.53797832,154.23,154.17,11.00184725]
[1724771533589,11.78017832,154.23,154.17,14.24504725]
[1724771533988,3.2423,154.22,154.17,14.24504725]
[1724771534695,3.2422,154.23,154.18,3.2431]
[1724771535288,3.2422,154.23,154.17,11.00184725]
[1724771535289,3.2423,154.22,154.17,0.04184725]
[1724771535595,10.96,154.23,154.17,0.04184725]
[1724771535788,3.2425,154.21,154.17,0.04184725]
[1724771537385,10.96,154.21,154.17,0.04184725]
[1724771537589,10.96,154.23,154.17,0.04184725]
[1724771537993,3.2426,154.21,154.17,0.04184725]
[1724771538391,10.96,154.23,154.17,0.04184725]
[1724771538596,3.20932453,154.24,154.17,0.04184725]
[1724771538793,10.96,154.22,154.17,0.04184725]
[1724771538998,14.22252134,154.22,154.17,0.04184725]
[1724771539201,10.96,154.22,154.17,0.04184725]
[1724771539410,14.16478334,154.22,154.17,0.04184725]
[1724771539896,10.96,154.22,154.17,0.04184725]
[1724771540398,3.2425,154.21,154.17,14.24494725]
[1724771540996,1.2384,154.25,154.17,11.00184725]
[1724771541198,12.2106,154.26,154.19,10.96]
[1724771541407,12.2106,154.26,154.21,0.04861156]
[1724771541699,3.2417,154.25,154.21,3.29091156]
[1724771542595,3.2415,154.26,154.22,3.2422]
[1724771542795,3.2415,154.26,154.22,14.2022]
[1724771544200,3.2415,154.26,154.21,3.29101156]
[1724771544201,3.2416,154.25,154.21,3.29101156]
[1724771544902,3.2416,154.25,154.22,3.2422]
[1724771545699,3.2416,154.25,154.21,3.29101156]
[1724771547008,3.2416,154.25,154.21,14.25101156]
[1724771547400,3.2419,154.24,154.21,14.25101156]
[1724771547704,10.96,154.25,154.21,0.04861156]
[1724771547895,3.242,154.24,154.21,0.04861156]
[1724771548495,10.96,154.25,154.21,0.04861156]
[1724771549304,3.2419,154.24,154.21,0.04861156]
[1724771549904,3.2417,154.25,154.21,14.25101156]
[1724771550318,5.22,154.29,154.21,11.00861156]
[1724771550618,10.96,154.26,154.21,11.00861156]
[1724771551000,10.96,154.29,154.22,10.96]
[1724771552307,75.0887486,154.35,154.24,10.96]
[1724771552606,10.96,154.32,154.28,0.04620156]
[1724771552809,0.6854464,154.31,154.28,0.04620156]
[1724771553108,10.96,154.34,154.28,0.04620156]
[1724771553307,0.68555548,154.33,154.29,10.96]
[1724771553516,10.96,154.36,154.29,11.00147022]
[1724771553804,0.68549822,154.35,154.31,0.04336452]
[1724771554511,14.1999,154.34,154.31,0.04336452]
[1724771554710,0.68550815,154.33,154.31,0.04336452]
[1724771555403,14.1999,154.34,154.31,0.04336452]
[1724771555611,11.64530849,154.33,154.31,0.04336452]
[1724771555804,10.96,154.33,154.31,0.04336452]
[1724771556006,30.6099,154.34,154.31,0.04336452]
[1724771556408,0.68527853,154.33,154.31,0.04336452]
[1724771556809,3.2399,154.33,154.31,0.04336452]
[1724771558613,30.6098,154.34,154.31,0.04336452]
[1724771558909,3.2398,154.34,154.31,0.04336452]
[1724771561208,3.32070024,154.36,154.31,0.04336452]
[1724771561209,3.2396,154.35,154.31,0.04336452]
[1724771561514,0.68518309,154.34,154.31,0.04336452]
[1724771561709,0.68518309,154.35,154.31,0.04336452]
[1724771561916,3.2397,154.34,154.31,0.04336452]
[1724771564818,3.92500693,154.33,154.31,0.04336452]
[1724771565109,3.24,154.33,154.31,0.04336452]
[1724771568112,30.6101,154.32,154.31,0.04336452]
[1724771568311,28.05489292,154.32,154.25,5.2]
[1724771568508,27.37,154.3,154.25,5.2]
[1724771568707,27.37,154.3,154.23,9.67812262]
[1724771569117,30.6106,154.3,154.23,9.67812262]
[1724771569317,0.04763658,154.28,154.25,0.041942]
[1724771573916,0.04763658,154.28,154.27,27.37]
[1724771574122,33.8852,154.38,154.27,27.37]
[1724771574325,3.2403,154.32,154.27,3.241]
[1724771574518,3.2403,154.32,154.28,27.37]
[1724771575118,3.2403,154.32,154.28,27.4122457]
[1724771575515,1.2953,154.41,154.3,27.37]
[1724771575818,0.68487828,154.4,154.34,0.0428508]
[1724771576011,0.68487828,154.4,154.34,10.9928508]
[1724771576012,3.2392,154.37,154.34,10.9928508]
[1724771576823,3.2392,154.37,154.34,0.0428508]
[1724771578724,3.2389,154.38,154.34,0.0428508]
[1724771579431,3.2391,154.37,154.34,0.0428508]
[1724771581819,3.2388,154.39,154.35,10.95]
[1724771582928,3.2389,154.38,154.34,0.0428508]
[1724771583427,3.2391,154.37,154.34,0.0428508]
[1724771585524,3.2391,154.37,154.35,10.95]
[1724771585722,3.2391,154.37,154.36,10.95]
[1724771585914,1.3152,154.42,154.36,10.95]
[1724771586116,0.68511462,154.41,154.37,0.04173232]
[1724771586521,3.2386,154.4,154.37,0.04173232]
[1724771587717,3.2387,154.39,154.37,0.04173232]
[1724771588722,3.26001237,154.44,154.37,27.41173232]
[1724771588929,28.5809,154.45,154.37,0.04173232]
[1724771589127,3.2385,154.4,154.39,0.0458214]
[1724771591635,3.16864649,154.41,154.31,8.4402]
[1724771591937,28.6137,154.39,154.31,8.4402]
[1724771592129,28.6137,154.39,154.3,4.5065]
[1724771592130,31.82414152,154.39,154.3,4.5065]
[1724771592332,27.37,154.37,154.27,27.37]
[1724771592532,27.37,154.37,154.3,0.04450653]
[1724771592731,0.04705366,154.34,154.3,0.04450653]
[1724771593830,3.28695366,154.34,154.3,0.04450653]
[1724771594031,0.04705366,154.34,154.3,0.04450653]
[1724771594230,27.37,154.33,154.3,0.04450653]
[1724771594535,3.2403,154.31,154.3,0.04450653]
[1724771594740,33.77759323,154.31,154.23,6.50102262]
[1724771594936,3.16729323,154.31,154.23,6.50102262]
[1724771595132,3.2411,154.28,154.23,6.50102262]
[1724771595429,3.2411,154.28,154.23,3.2418]
[1724771595733,3.2411,154.28,154.24,0.04534092]
[1724771595936,0.04533312,154.27,154.24,0.04534092]
[1724771597327,0.04533312,154.27,154.26,27.37]
[1724771597848,0.04533312,154.27,154.26,30.6114]
[1724771598134,0.04533312,154.27,154.26,27.37]
[1724771598332,0.04533312,154.27,154.24,35.85704092]
[1724771598727,0.04533312,154.27,154.26,27.37]
[1724771600331,1.2774,154.33,154.26,30.6114]
[1724771600635,1.3253,154.35,154.28,27.37]
[1724771601032,3.2404,154.31,154.28,27.37]
[1724771601432,3.28809362,154.31,154.28,27.41579315]
[1724771602242,0.04769362,154.31,154.28,27.41579315]
[1724771603043,0.04769362,154.31,154.29,3.2406]
[1724771603337,3.28799362,154.31,154.28,27.41579315]
[1724771603528,3.28799362,154.31,154.28,0.04579315]
[1724771604140,3.28799362,154.31,154.28,3.28659315]
[1724771604338,3.2407,154.3,154.28,0.04579315]
[1724771604937,3.2408,154.29,154.28,0.04579315]
[1724771610942,3.2406,154.3,154.28,0.04579315]
[1724771613248,3.2408,154.29,154.28,0.04579315]
[1724771614250,3.2406,154.3,154.28,0.04579315]
[1724771615140,3.2408,154.29,154.28,0.04579315]
[1724771615337,0.04769362,154.31,154.28,3.28659315]
[1724771615942,0.04769362,154.31,154.28,0.04579315]
[1724771616846,3.2408,154.29,154.28,0.04579315]
[1724771621664,1.2431,154.3,154.22,3.242]
[1724771621665,31.84248151,154.3,154.22,3.242]
[1724771621970,3.2417,154.25,154.22,3.242]
[1724771622268,3.2414,154.26,154.23,3.242]
[1724771622868,3.28720599,154.26,154.23,3.29184519]
[1724771623064,3.2417,154.25,154.23,3.29184519]
[1724771625462,3.2417,154.25,154.23,0.04984519]
[1724771626860,3.2418,154.24,154.23,0.04984519]
[1724771627062,3.2418,154.24,154.17,3.2432]
[1724771627063,10.96,154.24,154.17,3.2432]
[1724771627266,10.96,154.21,154.13,5.18]
[1724771627464,3.2432,154.18,154.15,3.2436]
[1724771627773,3.2432,154.18,154.14,10.96]
[1724771627969,0.04732884,154.18,154.14,0.0471415]
[1724771628170,0.04732884,154.18,154.16,3.2435]
[1724771629069,3.29042884,154.18,154.14,0.0471415]
[1724771629972,3.2436,154.16,154.14,0.0471415]
[1724771630172,0.04732884,154.18,154.14,0.0471415]
[1724771630475,27.45732884,154.18,154.14,0.0471415]
[1724771630976,0.04732884,154.18,154.14,0.0471415]
[1724771631377,3.29052884,154.18,154.14,0.0471415]
[1724771632177,0.04732884,154.18,154.14,0.0471415]
[1724771632381,0.04732884,154.18,154.15,27.41]
[1724771632768,0.04732884,154.18,154.17,3.2433]
[1724771635881,0.04732884,154.18,154.16,3.2434]